[Event "TePe Sigeman Chess Tournament 2026"]
[Site "Elite Plaza Hotel, Gustav Adolfs Torg 49, Malmo, Sweden"]
[Date "2026.05.03"]
[Round "3.3"]
[White "Carlsen, Magnus"]
[Black "Abdusattorov, Nodirbek"]
[Result "1/2-1/2"]
[TimeControl "90 minutes for 40 moves + 30 minutes for the rest of the game + 30 seconds per move from move one."]
[WhiteTitle "GM"]
[BlackTitle "GM"]
[WhiteFideId "1503014"]
[BlackFideId "14204118"]
[WhiteElo "2840"]
[BlackElo "2780"]

1. d4 {[%clk 01:26:51]} {[%emt 00:04:07]} d5 {[%clk 01:30:45]} {[%emt
00:00:14]} 2. Nf3 {[%clk 01:26:16]} {[%emt 00:01:05]} Nf6 {[%clk 01:31:05]}
{[%emt 00:00:10]} 3. c4 {[%clk 01:26:41]} {[%emt 00:00:05]} c6 {[%clk
01:31:07]} {[%emt 00:00:28]} 4. Qc2 {[%clk 01:25:26]} {[%emt 00:01:45]} g6
{[%clk 01:29:47]} {[%emt 00:01:49]} 5. cxd5 {[%clk 01:24:35]} {[%emt 00:01:22]}
cxd5 {[%clk 01:29:56]} {[%emt 00:00:21]} 6. Nc3 {[%clk 01:22:37]} {[%emt
00:02:28]} Nc6 {[%clk 01:29:56]} {[%emt 00:00:31]} 7. Bf4 {[%clk 01:22:49]}
{[%emt 00:00:17]} Bg7 {[%clk 01:24:17]} {[%emt 00:06:09]} 8. e3 {[%clk
01:23:13]} {[%emt 00:00:07]} O-O {[%clk 01:20:07]} {[%emt 00:04:39]} 9. Be2
{[%clk 01:16:20]} {[%emt 00:07:22]} a6 {[%clk 01:12:39]} {[%emt 00:07:59]} 10.
h3 {[%clk 01:02:46]} {[%emt 00:14:04]} Bf5 {[%clk 01:09:47]} {[%emt 00:03:21]}
11. Qb3 {[%clk 01:02:49]} {[%emt 00:00:28]} Na5 {[%clk 01:09:53]} {[%emt
00:00:25]} 12. Qb4 {[%clk 01:02:20]} {[%emt 00:00:59]} Re8 {[%clk 01:07:09]}
{[%emt 00:03:14]} 13. O-O {[%clk 00:56:39]} {[%emt 00:06:11]} Bf8 {[%clk
01:04:57]} {[%emt 00:02:43]} 14. Qa4 {[%clk 00:54:15]} {[%emt 00:02:54]} b5
{[%clk 00:58:21]} {[%emt 00:07:05]} 15. Qd1 {[%clk 00:54:42]} {[%emt 00:00:03]}
Nc4 {[%clk 00:57:37]} {[%emt 00:01:13]} 16. b3 {[%clk 00:51:18]} {[%emt
00:03:55]} Na3 {[%clk 00:55:14]} {[%emt 00:02:52]} 17. Bd3 {[%clk 00:49:33]}
{[%emt 00:02:15]} Bxd3 {[%clk 00:47:10]} {[%emt 00:08:34]} 18. Qxd3 {[%clk
00:50:01]} {[%emt 00:00:02]} e6 {[%clk 00:47:09]} {[%emt 00:00:31]} 19. Rac1
{[%clk 00:48:01]} {[%emt 00:02:30]} Rc8 {[%clk 00:45:38]} {[%emt 00:02:01]} 20.
Ne2 {[%clk 00:41:10]} {[%emt 00:07:20]} Qb6 {[%clk 00:42:45]} {[%emt 00:03:22]}
21. Ne5 {[%clk 00:32:27]} {[%emt 00:09:15]} Qb7 {[%clk 00:41:48]} {[%emt
00:01:27]} 22. f3 {[%clk 00:32:08]} {[%emt 00:00:49]} b4 {[%clk 00:40:24]}
{[%emt 00:01:54]} 23. Qd2 {[%clk 00:29:45]} {[%emt 00:02:53]} Nb5 {[%clk
00:38:18]} {[%emt 00:02:35]} 24. Nd3 {[%clk 00:26:35]} {[%emt 00:03:41]} Nd7
{[%clk 00:37:35]} {[%emt 00:01:13]} 25. Rxc8 {[%clk 00:22:28]} {[%emt
00:04:38]} Rxc8 {[%clk 00:38:00]} {[%emt 00:00:06]} 26. Rc1 {[%clk 00:22:46]}
{[%emt 00:00:11]} a5 {[%clk 00:37:18]} {[%emt 00:01:12]} 27. Kf2 {[%clk
00:23:09]} {[%emt 00:00:07]} f6 {[%clk 00:36:46]} {[%emt 00:01:02]} 28. g4
{[%clk 00:20:05]} {[%emt 00:03:34]} Be7 {[%clk 00:30:54]} {[%emt 00:06:22]} 29.
h4 {[%clk 00:19:32]} {[%emt 00:01:02]} Rc6 {[%clk 00:27:01]} {[%emt 00:04:23]}
30. g5 {[%clk 00:17:05]} {[%emt 00:02:58]} Qc8 {[%clk 00:26:22]} {[%emt
00:01:08]} 31. Rxc6 {[%clk 00:17:20]} {[%emt 00:00:16]} Qxc6 {[%clk 00:26:49]}
{[%emt 00:00:03]} 32. gxf6 {[%clk 00:17:36]} {[%emt 00:00:13]} Bxf6 {[%clk
00:25:53]} {[%emt 00:01:27]} 33. Bg5 {[%clk 00:17:18]} {[%emt 00:00:48]} Qc7
{[%clk 00:23:33]} {[%emt 00:02:49]} 34. Kg2 {[%clk 00:13:38]} {[%emt 00:04:10]}
Nd6 {[%clk 00:22:23]} {[%emt 00:01:40]} 35. Ng3 {[%clk 00:10:45]} {[%emt
00:03:22]} Kf7 {[%clk 00:19:21]} {[%emt 00:03:34]} 36. Qe2 {[%clk 00:08:05]}
{[%emt 00:03:10]} Ke7 {[%clk 00:14:29]} {[%emt 00:05:22]} 37. Ne5 {[%clk
00:03:58]} {[%emt 00:04:37]} Bxg5 {[%clk 00:13:08]} {[%emt 00:01:52]} 38. hxg5
{[%clk 00:04:21]} {[%emt 00:00:07]} Nxe5 {[%clk 00:12:06]} {[%emt 00:01:32]} 39.
dxe5 {[%clk 00:04:49]} {[%emt 00:00:02]} Nf5 {[%clk 00:10:55]} {[%emt
00:01:40]} 40. Nxf5+ {[%clk 00:05:12]} {[%emt 00:00:08]} gxf5 {[%clk 00:11:19]}
{[%emt 00:00:06]} 41. f4 {[%clk 00:02:54]} {[%emt 00:02:48]} Qc1 {[%clk
00:11:33]} {[%emt 00:00:15]} 42. Qa6 {[%clk 00:02:27]} {[%emt 00:00:56]} Qd2+
{[%clk 00:11:54]} {[%emt 00:00:09]} 43. Kf3 {[%clk 00:02:52]} {[%emt 00:00:05]}
Qd1+ {[%clk 00:12:19]} {[%emt 00:00:06]} 44. Kf2 {[%clk 00:03:17]} {[%emt
00:00:05]} Qd2+ {[%clk 00:12:18]} {[%emt 00:00:31]} 1/2-1/2

[Event "TePe Sigeman Chess Tournament 2026"]
[Site "Elite Plaza Hotel, Gustav Adolfs Torg 49, Malmo, Sweden"]
[Date "2026.05.03"]
[Round "3.4"]
[White "Zhu, Jiner"]
[Black "Erdogmus, Yagiz Kaan"]
[Result "0-1"]
[TimeControl "90 minutes for 40 moves + 30 minutes for the rest of the game + 30 seconds per move from move one."]
[WhiteTitle "GM"]
[BlackTitle "GM"]
[WhiteFideId "8608059"]
[BlackFideId "44599790"]
[WhiteElo "2546"]
[BlackElo "2708"]

1. Nf3 {[%clk 01:30:53]} {[%emt 00:00:06]} d5 {[%clk 01:30:42]} {[%emt
00:00:19]} 2. e3 {[%clk 01:31:15]} {[%emt 00:00:08]} Nf6 {[%clk 01:30:33]}
{[%emt 00:00:39]} 3. b3 {[%clk 01:31:33]} {[%emt 00:00:12]} Bg4 {[%clk
01:25:53]} {[%emt 00:05:09]} 4. Bb2 {[%clk 01:31:36]} {[%emt 00:00:27]} Nbd7
{[%clk 01:24:45]} {[%emt 00:01:39]} 5. Be2 {[%clk 01:29:40]} {[%emt 00:02:26]}
c6 {[%clk 01:18:51]} {[%emt 00:06:24]} 6. d3 {[%clk 01:18:52]} {[%emt
00:11:18]} e6 {[%clk 01:06:24]} {[%emt 00:12:57]} 7. h3 {[%clk 01:18:08]}
{[%emt 00:01:13]} Bh5 {[%clk 01:03:46]} {[%emt 00:03:08]} 8. Nbd2 {[%clk
01:17:45]} {[%emt 00:00:53]} h6 {[%clk 01:00:48]} {[%emt 00:03:28]} 9. c4
{[%clk 01:13:31]} {[%emt 00:04:44]} Bd6 {[%clk 00:59:35]} {[%emt 00:01:43]} 10.
Nd4 {[%clk 00:58:18]} {[%emt 00:15:44]} Bg6 {[%clk 00:57:45]} {[%emt 00:02:17]}
11. g4 {[%clk 00:45:49]} {[%emt 00:13:01]} O-O {[%clk 00:34:12]} {[%emt
00:24:03]} 12. Rg1 {[%clk 00:41:46]} {[%emt 00:04:32]} e5 {[%clk 00:30:44]}
{[%emt 00:03:59]} 13. Nf5 {[%clk 00:41:43]} {[%emt 00:00:32]} Bxf5 {[%clk
00:29:55]} {[%emt 00:01:20]} 14. gxf5 {[%clk 00:42:06]} {[%emt 00:00:07]} Qe7
{[%clk 00:29:39]} {[%emt 00:00:45]} 15. a3 {[%clk 00:34:32]} {[%emt 00:08:06]}
a5 {[%clk 00:28:25]} {[%emt 00:01:44]} 16. Qc2 {[%clk 00:26:50]} {[%emt
00:08:12]} Rfe8 {[%clk 00:26:57]} {[%emt 00:01:58]} 17. Bf3 {[%clk 00:24:22]}
{[%emt 00:02:58]} Nc5 {[%clk 00:23:06]} {[%emt 00:04:21]} 18. e4 {[%clk
00:19:12]} {[%emt 00:05:39]} dxe4 {[%clk 00:16:28]} {[%emt 00:07:09]} 19. dxe4
{[%clk 00:19:09]} {[%emt 00:00:33]} Rad8 {[%clk 00:14:56]} {[%emt 00:02:02]} 20.
Be2 {[%clk 00:14:02]} {[%emt 00:05:37]} Kh7 {[%clk 00:13:10]} {[%emt 00:02:16]}
21. Rg3 {[%clk 00:13:24]} {[%emt 00:01:08]} g6 {[%clk 00:09:38]} {[%emt
00:04:03]} 22. Rf3 {[%clk 00:05:17]} {[%emt 00:08:38]} Ncd7 {[%clk 00:07:38]}
{[%emt 00:02:30]} 23. Nf1 {[%clk 00:03:16]} {[%emt 00:02:30]} Nh5 {[%clk
00:07:11]} {[%emt 00:00:57]} 24. Ne3 {[%clk 00:02:51]} {[%emt 00:00:55]} Nf4
{[%clk 00:06:36]} {[%emt 00:01:05]} 25. Bf1 {[%clk 00:01:57]} {[%emt 00:01:23]}
Nf6 {[%clk 00:05:12]} {[%emt 00:01:54]} 26. c5 {[%clk 00:00:37]} {[%emt
00:01:50]} Bxc5 {[%clk 00:05:17]} {[%emt 00:00:26]} 27. Nc4 {[%clk 00:00:55]}
{[%emt 00:00:12]} Bd4 {[%clk 00:01:57]} {[%emt 00:03:50]} 28. O-O-O {[%clk
00:01:17]} {[%emt 00:00:07]} Bxb2+ {[%clk 00:02:21]} {[%emt 00:00:06]} 29. Kxb2
{[%clk 00:01:42]} {[%emt 00:00:05]} Rxd1 {[%clk 00:02:01]} {[%emt 00:00:50]} 30.
Qxd1 {[%clk 00:02:09]} {[%emt 00:00:03]} gxf5 {[%clk 00:02:26]} {[%emt
00:00:06]} 31. exf5 {[%emt 00:00:42]} N6d5 {[%clk 00:02:50]} 32. Rg3 {[%clk
00:01:13]} {[%emt 00:01:20]} Qf6 {[%clk 00:03:19]} {[%emt 00:00:01]} 33. Ka2
{[%clk 00:00:51]} {[%emt 00:00:52]} b5 {[%clk 00:01:42]} {[%emt 00:02:08]} 34.
Ne3 {[%clk 00:00:32]} {[%emt 00:00:17]} 0-1

[Event "TePe Sigeman Chess Tournament 2026"]
[Site "Elite Plaza Hotel, Gustav Adolfs Torg 49, Malmo, Sweden"]
[Date "2026.05.04"]
[Round "4.1"]
[White "Erdogmus, Yagiz Kaan"]
[Black "Grandelius, Nils"]
[Result "1-0"]
[TimeControl "90 minutes for 40 moves + 30 minutes for the rest of the game + 30 seconds per move from move one."]
[WhiteTitle "GM"]
[BlackTitle "GM"]
[WhiteFideId "44599790"]
[BlackFideId "1710400"]
[WhiteElo "2708"]
[BlackElo "2662"]

1. e4 {[%clk 01:30:57]} {[%emt 00:00:02]} e5 {[%clk 01:30:39]} {[%emt
00:00:22]} 2. Nf3 {[%clk 01:31:21]} {[%emt 00:00:06]} Nc6 {[%clk 01:31:02]}
{[%emt 00:00:07]} 3. Bb5 {[%clk 01:31:48]} {[%emt 00:00:03]} Bc5 {[%clk
01:30:54]} {[%emt 00:00:37]} 4. c3 {[%clk 01:28:01]} {[%emt 00:04:18]} Nf6
{[%clk 01:30:11]} {[%emt 00:01:12]} 5. O-O {[%clk 01:26:32]} {[%emt 00:01:59]}
O-O {[%clk 01:29:55]} {[%emt 00:00:45]} 6. d4 {[%clk 01:23:25]} {[%emt
00:03:38]} Bb6 {[%clk 01:30:03]} {[%emt 00:00:22]} 7. Bg5 {[%clk 01:06:45]}
{[%emt 00:17:11]} h6 {[%clk 01:29:38]} {[%emt 00:00:54]} 8. Bh4 {[%clk
01:03:07]} {[%emt 00:04:09]} d6 {[%clk 01:29:25]} {[%emt 00:00:42]} 9. a4
{[%clk 00:49:27]} {[%emt 00:14:11]} a5 {[%clk 01:29:02]} {[%emt 00:00:53]} 10.
Qc1 {[%clk 00:45:03]} {[%emt 00:04:54]} Qe7 {[%clk 01:28:30]} {[%emt 00:01:01]}
11. Re1 {[%clk 00:39:17]} {[%emt 00:06:16]} exd4 {[%clk 01:25:01]} {[%emt
00:03:59]} 12. Bxc6 {[%clk 00:38:26]} {[%emt 00:01:21]} bxc6 {[%clk 01:25:08]}
{[%emt 00:00:23]} 13. cxd4 {[%clk 00:36:10]} {[%emt 00:02:47]} Qe6 {[%clk
01:23:09]} {[%emt 00:02:29]} 14. Qxc6 {[%clk 00:30:30]} {[%emt 00:06:11]} Bd7
{[%clk 01:21:17]} {[%emt 00:02:21]} 15. Qc2 {[%clk 00:29:54]} {[%emt 00:01:07]}
g5 {[%clk 01:12:52]} {[%emt 00:08:54]} 16. Bg3 {[%clk 00:29:06]} {[%emt
00:01:19]} Nh5 {[%clk 01:13:14]} {[%emt 00:00:07]} 17. e5 {[%clk 00:19:14]}
{[%emt 00:10:23]} Nxg3 {[%clk 00:41:20]} {[%emt 00:32:24]} 18. hxg3 {[%clk
00:19:42]} {[%emt 00:00:02]} g4 {[%clk 00:40:03]} {[%emt 00:01:46]} 19. exd6
{[%clk 00:18:31]} {[%emt 00:01:42]} Qg6 {[%clk 00:36:33]} {[%emt 00:03:59]} 20.
Qxg6+ {[%clk 00:15:34]} {[%emt 00:03:28]} fxg6 {[%clk 00:36:43]} {[%emt
00:00:20]} 21. Ne5 {[%clk 00:12:27]} {[%emt 00:03:37]} Bxd4 {[%clk 00:25:48]}
{[%emt 00:11:25]} 22. Nxd7 {[%clk 00:12:49]} {[%emt 00:00:08]} Rxf2 {[%clk
00:25:24]} {[%emt 00:00:53]} 23. Re4 {[%clk 00:12:46]} {[%emt 00:00:33]} Rf4+
{[%clk 00:25:23]} {[%emt 00:00:31]} 24. Rxd4 {[%clk 00:13:12]} {[%emt
00:00:05]} Rxd4 {[%emt 00:02:39]} 25. Nc3 {[%clk 00:11:07]} cxd6 {[%clk
00:16:44]} {[%emt 00:09:35]} 26. Nd5 {[%clk 00:08:22]} {[%emt 00:03:15]} h5
{[%clk 00:13:53]} {[%emt 00:03:20]} 27. Re1 {[%clk 00:07:32]} {[%emt 00:01:20]}
Kh7 {[%clk 00:14:14]} {[%emt 00:00:08]} 28. Nf4 {[%clk 00:04:45]} {[%emt
00:03:18]} Rc8 {[%clk 00:08:17]} {[%emt 00:06:27]} 29. Kh2 {[%clk 00:03:28]}
{[%emt 00:01:47]} Rc2 {[%clk 00:04:28]} {[%emt 00:04:19]} 30. Re7+ {[%clk
00:02:15]} {[%emt 00:01:43]} Kh6 {[%clk 00:04:56]} {[%emt 00:00:01]} 31. Nf6
{[%clk 00:01:39]} {[%emt 00:01:07]} Rd1 {[%clk 00:01:27]} {[%emt 00:03:59]} 32.
Ne6 {[%clk 00:01:36]} {[%emt 00:00:33]} g5 {[%clk 00:01:51]} {[%emt 00:00:06]}
33. Nf8 {[%clk 00:01:47]} {[%emt 00:00:19]} 1-0

[Event "TePe Sigeman Chess Tournament 2026"]
[Site "Elite Plaza Hotel, Gustav Adolfs Torg 49, Malmo, Sweden"]
[Date "2026.05.04"]
[Round "4.2"]
[White "Abdusattorov, Nodirbek"]
[Black "Erigaisi, Arjun"]
[Result "1/2-1/2"]
[TimeControl "90 minutes for 40 moves + 30 minutes for the rest of the game + 30 seconds per move from move one."]
[WhiteTitle "GM"]
[BlackTitle "GM"]
[WhiteFideId "14204118"]
[BlackFideId "35009192"]
[WhiteElo "2780"]
[BlackElo "2751"]

1. c4 {[%clk 01:30:50]} {[%emt 00:00:10]} e6 {[%clk 01:29:57]} {[%emt
00:01:04]} 2. Nc3 {[%clk 01:31:08]} {[%emt 00:00:12]} d5 {[%clk 01:30:21]}
{[%emt 00:00:06]} 3. d4 {[%clk 01:31:31]} {[%emt 00:00:06]} Be7 {[%clk
01:30:46]} {[%emt 00:00:06]} 4. cxd5 {[%clk 01:31:52]} {[%emt 00:00:09]} exd5
{[%clk 01:31:10]} {[%emt 00:00:05]} 5. Bf4 {[%clk 01:32:13]} {[%emt 00:00:08]}
Nf6 {[%clk 01:31:20]} {[%emt 00:00:21]} 6. e3 {[%clk 01:32:14]} {[%emt
00:00:29]} Bf5 {[%clk 01:31:32]} {[%emt 00:00:18]} 7. Nge2 {[%clk 01:29:38]}
{[%emt 00:03:06]} O-O {[%clk 01:30:58]} {[%emt 00:01:04]} 8. Rc1 {[%clk
01:29:49]} {[%emt 00:00:19]} Be6 {[%clk 01:30:57]} {[%emt 00:00:31]} 9. Bg3
{[%clk 01:25:44]} {[%emt 00:04:35]} c6 {[%clk 01:27:28]} {[%emt 00:04:00]} 10.
Nf4 {[%clk 01:25:26]} {[%emt 00:00:48]} Bf5 {[%clk 01:27:45]} {[%emt 00:00:13]}
11. Bd3 {[%clk 01:23:52]} {[%emt 00:02:04]} Bxd3 {[%clk 01:26:56]} {[%emt
00:01:19]} 12. Nxd3 {[%clk 01:24:17]} {[%emt 00:00:05]} Ne4 {[%clk 01:25:36]}
{[%emt 00:01:50]} 13. Qb3 {[%clk 01:11:33]} {[%emt 00:13:14]} Nxc3 {[%clk
01:07:15]} {[%emt 00:18:51]} 14. Rxc3 {[%clk 01:03:43]} {[%emt 00:08:20]} Qb6
{[%clk 01:06:26]} {[%emt 00:01:18]} 15. O-O {[%clk 01:03:37]} {[%emt 00:00:36]}
Nd7 {[%clk 01:06:26]} {[%emt 00:00:29]} 16. a4 {[%clk 01:01:09]} {[%emt
00:02:58]} Rfc8 {[%clk 00:59:27]} {[%emt 00:07:29]} 17. Rfc1 {[%clk 00:58:02]}
{[%emt 00:03:37]} Nf6 {[%clk 00:55:57]} {[%emt 00:04:00]} 18. a5 {[%clk
00:54:13]} {[%emt 00:04:19]} Qa6 {[%clk 00:54:52]} {[%emt 00:01:36]} 19. Bh4
{[%clk 00:53:01]} {[%emt 00:01:41]} h6 {[%clk 00:50:17]} {[%emt 00:05:04]} 20.
Bxf6 {[%clk 00:47:49]} {[%emt 00:05:42]} Bxf6 {[%clk 00:49:48]} {[%emt
00:01:00]} 21. Nc5 {[%clk 00:35:06]} {[%emt 00:13:14]} Qxa5 {[%clk 00:50:01]}
{[%emt 00:00:17]} 22. Nxb7 {[%clk 00:33:55]} {[%emt 00:01:41]} Qb6 {[%clk
00:49:28]} {[%emt 00:01:03]} 23. Nc5 {[%clk 00:33:09]} {[%emt 00:01:16]} Be7
{[%clk 00:24:42]} {[%emt 00:25:17]} 24. Nd3 {[%clk 00:30:56]} {[%emt 00:02:42]}
Qxb3 {[%clk 00:24:59]} {[%emt 00:00:13]} 25. Rxb3 {[%clk 00:31:21]} {[%emt
00:00:05]} Rc7 {[%clk 00:25:06]} {[%emt 00:00:23]} 26. g3 {[%clk 00:16:14]}
{[%emt 00:15:37]} Bd6 {[%clk 00:19:05]} {[%emt 00:06:31]} 27. Nc5 {[%clk
00:13:42]} {[%emt 00:03:02]} Bxc5 {[%clk 00:12:52]} {[%emt 00:06:43]} 28. Rxc5
{[%clk 00:14:11]} {[%emt 00:00:02]} Kf8 {[%clk 00:13:11]} {[%emt 00:00:11]} 29.
Rbc3 {[%clk 00:14:22]} {[%emt 00:00:19]} Rac8 {[%clk 00:13:35]} {[%emt
00:00:06]} 30. Ra5 {[%clk 00:14:39]} {[%emt 00:00:13]} Ke8 {[%clk 00:10:43]}
{[%emt 00:03:22]} 31. h4 {[%clk 00:11:36]} {[%emt 00:03:34]} Kd7 {[%clk
00:07:29]} {[%emt 00:03:44]} 32. Rb3 {[%clk 00:09:02]} {[%emt 00:03:04]} Kd6
{[%clk 00:05:20]} {[%emt 00:02:39]} 33. h5 {[%clk 00:08:43]} {[%emt 00:00:49]}
Re7 {[%clk 00:05:29]} {[%emt 00:00:20]} 34. Ra6 {[%clk 00:07:33]} {[%emt
00:01:40]} Rcc7 {[%clk 00:03:42]} {[%emt 00:02:18]} 35. Rc3 {[%clk 00:07:43]}
{[%emt 00:00:20]} Re8 {[%clk 00:03:48]} {[%emt 00:00:24]} 36. Rca3 {[%clk
00:08:09]} {[%emt 00:00:04]} Rb8 {[%clk 00:03:39]} {[%emt 00:00:38]} 37. Rxa7
{[%clk 00:06:21]} {[%emt 00:02:19]} Rxb2 {[%clk 00:04:06]} {[%emt 00:00:03]} 38.
Ra8 {[%clk 00:06:24]} {[%emt 00:00:27]} Ke7 {[%clk 00:03:30]} {[%emt 00:01:05]}
39. Rg8 {[%clk 00:05:17]} {[%emt 00:01:38]} Kf6 {[%clk 00:03:54]} {[%emt
00:00:06]} 40. Rc3 {[%clk 00:01:41]} {[%emt 00:04:06]} Rb5 {[%clk 00:02:54]}
{[%emt 00:01:25]} 41. Ra3 {[%clk 00:24:40]} {[%emt 00:07:36]} Rb2 {[%clk
00:28:37]} {[%emt 00:04:47]} 42. Kg2 {[%clk 00:17:04]} {[%emt 00:08:06]} Rc2
{[%clk 00:17:03]} {[%emt 00:12:04]} 43. Ra6 {[%clk 00:17:29]} {[%emt 00:00:05]}
Rb7 {[%clk 00:16:19]} {[%emt 00:01:14]} 44. Rc8 {[%clk 00:09:03]} {[%emt
00:08:56]} Kg5 {[%clk 00:16:43]} {[%emt 00:00:06]} 45. Raxc6 {[%clk 00:09:21]}
{[%emt 00:00:12]} Rxc6 {[%clk 00:16:56]} {[%emt 00:00:17]} 46. Rxc6 {[%clk
00:09:50]} {[%emt 00:00:01]} Kxh5 {[%clk 00:17:24]} {[%emt 00:00:02]} 47. Rd6
{[%clk 00:08:41]} {[%emt 00:01:38]} Rb5 {[%clk 00:17:47]} {[%emt 00:00:07]} 48.
Kh3 {[%clk 00:07:35]} {[%emt 00:01:36]} f6 {[%clk 00:16:41]} {[%emt 00:01:36]}
49. g4+ {[%clk 00:07:32]} {[%emt 00:00:33]} Kg6 {[%clk 00:17:05]} {[%emt
00:00:06]} 50. Rd7 {[%clk 00:07:55]} {[%emt 00:00:08]} Kh7 {[%clk 00:13:31]}
{[%emt 00:04:05]} 51. Kg3 {[%clk 00:08:18]} {[%emt 00:00:06]} Kg8 {[%clk
00:13:15]} {[%emt 00:00:45]} 52. Kf4 {[%clk 00:07:48]} {[%emt 00:01:00]} g6
{[%clk 00:13:32]} {[%emt 00:00:13]} 53. Kg3 {[%clk 00:07:12]} {[%emt 00:01:07]}
Ra5 {[%clk 00:09:51]} {[%emt 00:04:11]} 54. f4 {[%clk 00:07:15]} {[%emt
00:00:27]} Ra3 {[%clk 00:09:28]} {[%emt 00:00:53]} 55. Kf3 {[%clk 00:07:39]}
{[%emt 00:00:06]} Ra5 {[%clk 00:09:55]} {[%emt 00:00:04]} 56. f5 {[%clk
00:05:28]} {[%emt 00:02:41]} gxf5 {[%clk 00:08:17]} {[%emt 00:02:07]} 57. gxf5
{[%clk 00:05:49]} {[%emt 00:00:10]} h5 {[%clk 00:08:42]} {[%emt 00:00:05]} 58.
Kf4 {[%clk 00:05:41]} {[%emt 00:00:38]} Rb5 {[%clk 00:08:51]} {[%emt 00:00:22]}
59. Rc7 {[%clk 00:05:49]} {[%emt 00:00:22]} Rb1 {[%clk 00:08:40]} {[%emt
00:00:40]} 60. Kg3 {[%clk 00:04:57]} {[%emt 00:01:22]} Rf1 {[%clk 00:08:49]}
{[%emt 00:00:21]} 61. Kh4 {[%clk 00:05:13]} {[%emt 00:00:15]} Rxf5 {[%clk
00:09:12]} {[%emt 00:00:06]} 62. Rd7 {[%clk 00:05:31]} {[%emt 00:00:13]}
1/2-1/2

[Event "TePe Sigeman Chess Tournament 2026"]
[Site "Elite Plaza Hotel, Gustav Adolfs Torg 49, Malmo, Sweden"]
[Date "2026.05.04"]
[Round "4.4"]
[White "Zhu, Jiner"]
[Black "Woodward, Andy"]
[Result "1-0"]
[TimeControl "90 minutes for 40 moves + 30 minutes for the rest of the game + 30 seconds per move from move one."]
[WhiteTitle "GM"]
[BlackTitle "GM"]
[WhiteFideId "8608059"]
[BlackFideId "30953499"]
[WhiteElo "2546"]
[BlackElo "2635"]

1. e4 {[%clk 01:30:57]} {[%emt 00:00:03]} c5 {[%clk 01:30:47]} {[%emt
00:00:14]} 2. Nf3 {[%clk 01:31:18]} {[%emt 00:00:08]} d6 {[%clk 01:31:10]}
{[%emt 00:00:06]} 3. d4 {[%clk 01:31:39]} {[%emt 00:00:09]} cxd4 {[%clk
01:31:34]} {[%emt 00:00:07]} 4. Nxd4 {[%clk 01:32:06]} {[%emt 00:00:03]} Nf6
{[%clk 01:31:54]} {[%emt 00:00:09]} 5. Nc3 {[%clk 01:32:31]} {[%emt 00:00:04]}
a6 {[%clk 01:32:18]} {[%emt 00:00:07]} 6. Bd3 {[%clk 01:32:48]} {[%emt
00:00:13]} e5 {[%clk 01:31:48]} {[%emt 00:01:00]} 7. Nde2 {[%clk 01:33:08]}
{[%emt 00:00:10]} Nc6 {[%clk 01:31:45]} {[%emt 00:00:33]} 8. O-O {[%emt
00:01:12]} Be6 {[%clk 01:31:46]} {[%emt 00:00:26]} 9. Kh1 {[%clk 01:32:30]}
{[%emt 00:00:30]} Rc8 {[%clk 01:29:02]} {[%emt 00:03:14]} 10. Nd5 {[%clk
01:26:31]} {[%emt 00:06:30]} Bxd5 {[%clk 01:04:35]} {[%emt 00:24:57]} 11. exd5
{[%clk 01:26:49]} {[%emt 00:00:12]} Nb4 {[%clk 01:04:59]} {[%emt 00:00:06]} 12.
Bf5 {[%clk 01:21:00]} {[%emt 00:06:19]} Rc7 {[%clk 01:04:28]} {[%emt 00:01:00]}
13. Nc3 {[%clk 01:18:40]} {[%emt 00:02:50]} g6 {[%clk 01:01:36]} {[%emt
00:03:22]} 14. Bh3 {[%clk 01:17:46]} {[%emt 00:01:24]} Rc4 {[%clk 00:37:53]}
{[%emt 00:24:13]} 15. f4 {[%clk 01:01:50]} {[%emt 00:16:26]} e4 {[%clk
00:35:16]} {[%emt 00:03:07]} 16. a3 {[%clk 00:54:57]} {[%emt 00:07:23]} Rxc3
{[%clk 00:33:48]} {[%emt 00:01:59]} 17. bxc3 {[%clk 00:55:20]} {[%emt
00:00:07]} Nbxd5 {[%clk 00:34:13]} {[%emt 00:00:04]} 18. c4 {[%clk 00:54:40]}
{[%emt 00:01:10]} Ne7 {[%clk 00:32:32]} {[%emt 00:02:12]} 19. Rb1 {[%clk
00:52:34]} {[%emt 00:02:35]} Bg7 {[%clk 00:28:51]} {[%emt 00:04:10]} 20. Rxb7
{[%clk 00:50:32]} {[%emt 00:02:33]} O-O {[%clk 00:29:10]} {[%emt 00:00:11]} 21.
Bb2 {[%clk 00:43:51]} {[%emt 00:07:11]} Nc6 {[%clk 00:28:45]} {[%emt 00:00:54]}
22. Bxf6 {[%clk 00:40:12]} {[%emt 00:04:09]} Qxf6 {[%clk 00:28:54]} {[%emt
00:00:21]} 23. Qd5 {[%clk 00:40:08]} {[%emt 00:00:35]} Nd8 {[%clk 00:28:23]}
{[%emt 00:01:01]} 24. Rb3 {[%clk 00:40:29]} {[%emt 00:00:10]} Re8 {[%clk
00:17:58]} {[%emt 00:10:54]} 25. Re3 {[%clk 00:40:43]} {[%emt 00:00:15]} Qb2
{[%clk 00:17:38]} {[%emt 00:00:51]} 26. Rxe4 {[%clk 00:38:56]} {[%emt
00:02:17]} Rxe4 {[%clk 00:18:01]} {[%emt 00:00:08]} 27. Qxe4 {[%clk 00:39:22]}
{[%emt 00:00:03]} Bf6 {[%clk 00:18:24]} {[%emt 00:00:07]} 28. Qd3 {[%clk
00:38:24]} {[%emt 00:01:28]} a5 {[%clk 00:12:01]} {[%emt 00:06:53]} 29. Qxd6
{[%clk 00:35:05]} {[%emt 00:03:49]} Kg7 {[%clk 00:12:22]} {[%emt 00:00:09]} 30.
g4 {[%clk 00:33:49]} {[%emt 00:01:46]} h6 {[%clk 00:11:20]} {[%emt 00:01:32]}
31. Bg2 {[%clk 00:33:17]} {[%emt 00:01:02]} Qc3 {[%clk 00:03:36]} {[%emt
00:08:14]} 32. Qd3 {[%clk 00:33:04]} {[%emt 00:00:44]} Qb2 {[%clk 00:04:04]}
{[%emt 00:00:02]} 33. f5 {[%clk 00:30:11]} {[%emt 00:03:23]} g5 {[%clk
00:04:26]} {[%emt 00:00:09]} 34. c5 {[%clk 00:30:04]} {[%emt 00:00:37]} Qe5
{[%clk 00:04:07]} {[%emt 00:00:49]} 35. c6 {[%clk 00:30:10]} {[%emt 00:00:24]}
Be7 {[%clk 00:04:15]} {[%emt 00:00:22]} 36. Qe4 {[%clk 00:29:42]} {[%emt
00:00:58]} Qc5 {[%clk 00:04:25]} {[%emt 00:00:20]} 37. Qxe7 {[%clk 00:29:26]}
{[%emt 00:00:45]} 1-0